fUSD/lending_fUSD_20250905
["ID","MTS","AMOUNT","RATE_DAILY","PERIOD"]
[383679702,1757082639433,-500.0,0.00030137,7]
[383679704,1757082639443,-500.0,0.00030137,7]
[383679706,1757082639453,-500.0,0.00030137,7]
[383679708,1757082639462,-1200.0,0.00030137,7]
[383679710,1757082639472,-500.0,0.00030137,7]
[383679712,1757082639487,-1700.0,0.00030137,7]
[383679713,1757082639496,-500.0,0.00030137,7]
[383679714,1757082639506,-500.0,0.00030137,7]
[383679715,1757082639515,-1200.0,0.00030137,7]
[383679716,1757082639526,-1700.0,0.00030137,7]
[383679717,1757082639535,-500.0,0.00030137,7]
[383679718,1757082639553,-500.0,0.00030137,7]
[383679719,1757082639564,-500.0,0.00030137,7]
[383679720,1757082639574,-500.0,0.00030137,7]
[383679721,1757082639585,-1200.0,0.00030137,7]
[383679722,1757082639595,-500.0,0.00030137,7]
[383679723,1757082639605,-500.0,0.00030137,7]
[383679724,1757082639615,-1700.0,0.00030137,7]
[383679725,1757082639625,-500.0,0.00030137,7]
[383679726,1757082639635,-961.38609621,0.00030137,7]
[383679727,1757082639645,-1200.0,0.00030137,7]
[383679728,1757082639655,-1700.0,0.00030137,7]
[383679729,1757082639664,-500.0,0.00030137,7]
[383679730,1757082639674,-500.7,0.00030137,7]
[383679731,1757082639683,-500.0,0.00030137,7]
[383679732,1757082639693,-1200.0,0.00030137,7]
[383679733,1757082639703,-500.0,0.00030137,7]
[383679734,1757082639713,-1700.0,0.00030137,7]
[383679735,1757082639727,-500.0,0.00030137,7]
[383679736,1757082639737,-1200.0,0.00030137,7]
[383679737,1757082639747,-500.0,0.00030137,7]
[383679738,1757082639757,-1700.0,0.00030137,7]
[383679739,1757082639767,-500.0,0.00030137,7]
[383679740,1757082639776,-1200.0,0.00030137,7]
[383679741,1757082639786,-312.21193696,0.00030137,7]
[383679742,1757082639796,-500.0,0.00030137,7]
[383679743,1757082639806,-1700.0,0.00030137,7]
[383679744,1757082639816,-500.0,0.00030137,7]
[383679745,1757082639825,-427.85149818,0.00030137,7]
[383679746,1757082639835,-617.89901712,0.00030137,7]
[383679747,1757082639845,-1200.0,0.00030137,7]
[383679748,1757082639855,-721.28960847,0.00030137,7]
[383679749,1757082639867,-1400.0,0.00030137,7]
[383679750,1757082639876,-1700.0,0.00030137,7]
[383679751,1757082639888,-500.0,0.00030137,7]
[383679752,1757082639899,-600.53406039,0.00030137,7]
[383679753,1757082639909,-500.0,0.00030137,7]
[383679754,1757082639919,-1400.0,0.00030137,7]
[383679755,1757082639930,-600.0,0.00030137,7]
[383679756,1757082639940,-1700.0,0.00030137,7]
[383679757,1757082639950,-500.0,0.00030137,7]
[383679758,1757082639960,-1200.0,0.00030137,7]
[383679759,1757082639977,-500.0,0.00030137,7]
[383679760,1757082639990,-600.0,0.00030137,7]
[383679761,1757082640000,-1400.0,0.00030137,7]
[383679762,1757082640010,-1200.0,0.00030137,7]
[383679763,1757082640020,-1700.0,0.00030137,7]
[383679764,1757082640031,-1200.0,0.00030137,7]
[383679765,1757082640040,-1400.0,0.00030137,7]
[383679766,1757082640050,-600.0,0.00030137,7]
[383679767,1757082640059,-500.0,0.00030137,7]
[383679768,1757082640069,-500.0,0.00030137,7]
[383679769,1757082640078,-1700.0,0.00030137,7]
[383679770,1757082640088,-1400.0,0.00030137,7]
[383679771,1757082640098,-600.0,0.00030137,7]
[383679772,1757082640107,-1200.0,0.00030137,7]
[383679773,1757082640116,-500.0,0.00030137,7]
[383679774,1757082640126,-1700.0,0.00030137,7]
[383679775,1757082640135,-500.0,0.00030137,7]
[383679776,1757082640144,-1200.0,0.00030137,7]
[383679777,1757082640153,-1200.0,0.00030137,7]
[383679778,1757082640163,-500.0,0.00030137,7]
[383679779,1757082640172,-1400.0,0.00030137,7]
[383679780,1757082640182,-500.0,0.00030137,7]
[383679781,1757082640192,-1700.0,0.00030137,7]
[383679782,1757082640202,-1200.0,0.00030137,7]
[383679783,1757082640212,-1400.0,0.00030137,7]
[383679784,1757082640221,-600.0,0.00030137,7]
[383679785,1757082640237,-1200.0,0.00030137,7]
[383679786,1757082640247,-500.0,0.00030137,7]
[383679787,1757082640257,-1200.0,0.00030137,7]
[383679788,1757082640266,-500.0,0.00030137,7]
[383679789,1757082640276,-1400.0,0.00030137,7]
[383679790,1757082640286,-500.0,0.00030137,7]
[383679791,1757082640296,-500.0,0.00030137,7]
[383679792,1757082640306,-1200.0,0.00030137,7]
[383679793,1757082640315,-1700.0,0.00030137,7]
[383679794,1757082640325,-500.0,0.00030137,7]
[383679795,1757082640335,-500.0,0.00030137,7]
[383679796,1757082640345,-500.0,0.00030137,7]
[383679797,1757082640354,-600.0,0.00030137,7]
[383679798,1757082640364,-1200.0,0.00030137,7]
[383679799,1757082640374,-500.0,0.00030137,7]
[383679800,1757082640383,-1200.0,0.00030137,7]
[383679801,1757082640394,-152.66251733,0.00030137,7]
[383679802,1757082640403,-1700.0,0.00030137,7]
[383679803,1757082640413,-500.0,0.00030137,7]
[383679804,1757082640427,-1400.0,0.00030137,7]
[383679805,1757082640437,-1200.0,0.00030137,7]
[383679806,1757082640448,-500.0,0.00030137,7]
[383679807,1757082640458,-1200.0,0.00030137,7]
[383679808,1757082640468,-500.0,0.00030137,7]
[383679809,1757082640482,-1400.0,0.00030137,7]
[383679810,1757082640491,-600.0,0.00030137,7]
[383679811,1757082640501,-1700.0,0.00030137,7]
[383679812,1757082640511,-1200.0,0.00030137,7]
[383679813,1757082640520,-500.0,0.00030137,7]
[383679814,1757082640530,-809.23995426,0.00030137,7]
[383679815,1757082640540,-1400.0,0.00030137,7]
[383679816,1757082640550,-1200.0,0.00030137,7]
[383679817,1757082640560,-500.0,0.00030137,7]
[383679818,1757082640570,-600.0,0.00030137,7]
[383679819,1757082640579,-1400.0,0.00030137,7]
[383679820,1757082640589,-166.5953983,0.00030137,7]
[383679821,1757082640598,-1400.0,0.00030137,7]
[383679822,1757082640607,-1200.0,0.00030137,7]
[383679823,1757082640616,-1200.0,0.00030137,7]
[383679824,1757082640626,-500.0,0.00030137,7]
[383679825,1757082640635,-500.0,0.00030137,7]
[383679826,1757082640645,-1700.0,0.00030137,7]
[383679827,1757082640654,-600.0,0.00030137,7]
[383679828,1757082640666,-1200.0,0.00030137,7]
[383679829,1757082640675,-1200.0,0.00030137,7]
[383679830,1757082640684,-687.06947383,0.00030137,7]
[383679831,1757082640693,-573.69819831,0.00030137,7]
[383679832,1757082640702,-1400.0,0.00030137,7]
[383679833,1757082640711,-1700.0,0.00030137,7]
[383679834,1757082640720,-1400.0,0.00030137,7]
[383679835,1757082640734,-1200.0,0.00030137,7]
[383679836,1757082640744,-1300.0,0.00030137,7]
[383679837,1757082640754,-1400.0,0.00030137,7]
[383679838,1757082640763,-500.0,0.00030137,7]
[383679839,1757082640774,-600.0,0.00030137,7]
[383679840,1757082640783,-1200.0,0.00030137,7]
[383679841,1757082640793,-1400.0,0.00030137,7]
[383679842,1757082640802,-1700.0,0.00030137,7]
[383679843,1757082640812,-500.0,0.00030137,7]
[383679844,1757082640822,-500.0,0.00030137,7]
[383679845,1757082640831,-1300.0,0.00030137,7]
[383679846,1757082640841,-1200.0,0.00030137,7]
[383679847,1757082640850,-1200.0,0.00030137,7]
[383679848,1757082640860,-500.0,0.00030137,7]
[383679849,1757082640871,-1400.0,0.00030137,7]
[383679850,1757082640881,-600.0,0.00030137,7]
[383679851,1757082640891,-500.0,0.00030137,7]
[383679852,1757082640901,-500.0,0.00030137,7]
[383679853,1757082640911,-1200.0,0.00030137,7]
[383679854,1757082640920,-1400.0,0.00030137,7]
[383679855,1757082640929,-1300.0,0.00030137,7]
[383679856,1757082640939,-500.0,0.00030137,7]
[383679857,1757082640951,-1400.0,0.00030137,7]
[383679858,1757082640961,-1200.0,0.00030137,7]
[383679859,1757082640971,-1200.0,0.00030137,7]
[383679860,1757082640986,-1700.0,0.00030137,7]
[383679861,1757082640996,-196.35202683,0.00030137,7]
[383679862,1757082641007,-1300.0,0.00030137,7]
[383679863,1757082641017,-500.0,0.00030137,7]
[383679864,1757082641027,-600.0,0.00030137,7]
[383679865,1757082641037,-500.0,0.00030137,7]
[383679866,1757082641047,-1400.0,0.00030137,7]
[383679867,1757082641057,-500.0,0.00030137,7]
[383679868,1757082641067,-1200.0,0.00030137,7]
[383679869,1757082641077,-1200.0,0.00030137,7]
[383679870,1757082641086,-994.59127981,0.00030137,7]
[383679871,1757082641096,-500.0,0.00030137,7]
[383679872,1757082641106,-1400.0,0.00030137,7]
[383679873,1757082641117,-600.0,0.00030137,7]
[383679874,1757082641126,-500.0,0.00030137,7]
[383679875,1757082641136,-933.30342496,0.00030137,7]
[383679876,1757082641145,-500.0,0.00030137,7]
[383679877,1757082641155,-1700.0,0.00030137,7]
[383679878,1757082641165,-1200.0,0.00030137,7]
[383679879,1757082641174,-216.51346479,0.00030137,7]
[383679880,1757082641184,-1957.14078106,0.00030137,7]
[383679881,1757082641194,-500.0,0.00030137,7]
[383679882,1757082641203,-1400.0,0.00030137,7]
[383679883,1757082641213,-1400.0,0.00030137,7]
[383679884,1757082641226,-1300.0,0.00030137,7]
[383679885,1757082641235,-600.0,0.00030137,7]
[383679886,1757082641245,-500.0,0.00030137,7]
[383679887,1757082641255,-1700.0,0.00030137,7]
[383679888,1757082641264,-1200.0,0.00030137,7]
[383679889,1757082641274,-500.0,0.00030137,7]
[383679890,1757082641283,-1400.0,0.00030137,7]
[383679891,1757082641293,-1400.0,0.00030137,7]
[383679892,1757082641303,-600.0,0.00030137,7]
[383679893,1757082641313,-3122.39850342,0.00030137,7]
[383679894,1757082641323,-1300.0,0.00030137,7]
[383679895,1757082641332,-500.0,0.00030137,7]
[383679896,1757082641342,-1400.0,0.00030137,7]
[383679897,1757082641352,-500.0,0.00030137,7]
[383679898,1757082641361,-1200.0,0.00030137,7]
[383679899,1757082641371,-600.0,0.00030137,7]
[383679900,1757082641380,-1400.0,0.00030137,7]
[383679901,1757082641390,-1300.0,0.00030137,7]
[383679902,1757082641400,-603.27904872,0.00030137,7]
[383679903,1757082641410,-1400.0,0.00030137,7]
[383679904,1757082641420,-500.0,0.00030137,7]
[383679905,1757082641429,-1200.0,0.00030137,7]
[383679906,1757082641439,-983.87461363,0.00030137,7]
[383679907,1757082641449,-1300.0,0.00030137,7]
[383679908,1757082641459,-1400.0,0.00030137,7]
[383679909,1757082641469,-1400.0,0.00030137,7]
[383679910,1757082641483,-600.0,0.00030137,7]
[383679911,1757082641493,-500.0,0.00030137,7]
[383679912,1757082641503,-1400.0,0.00030137,7]
[383679913,1757082641513,-600.0,0.00030137,7]
[383679914,1757082641523,-500.0,0.00030137,7]
[383679915,1757082641533,-1200.0,0.00030137,7]
[383679916,1757082641543,-1400.0,0.00030137,7]
[383679917,1757082641552,-1400.0,0.00030137,7]
[383679918,1757082641562,-600.0,0.00030137,7]
[383679919,1757082641572,-1300.0,0.00030137,7]
[383679920,1757082641582,-500.0,0.00030137,7]
[383679921,1757082641591,-663.64447555,0.00030137,7]
[383679922,1757082641605,-1200.0,0.00030137,7]
[383679923,1757082641615,-1300.0,0.00030137,7]
[383679924,1757082641626,-1400.0,0.00030137,7]
[383679925,1757082641636,-500.0,0.00030137,7]
[383679926,1757082641646,-600.0,0.00030137,7]
[383679927,1757082641656,-1200.0,0.00030137,7]
[383679928,1757082641666,-1400.0,0.00030137,7]
[383679929,1757082641676,-500.0,0.00030137,7]
[383679930,1757082641685,-1400.0,0.00030137,7]
[383679931,1757082641695,-600.0,0.00030137,7]
[383679932,1757082641704,-1400.0,0.00030137,7]
[383679933,1757082641714,-1300.0,0.00030137,7]
[383679934,1757082641726,-600.0,0.00030137,7]
[383679935,1757082641735,-1400.0,0.00030137,7]
[383679936,1757082641745,-1200.0,0.00030137,7]
[383679937,1757082641755,-600.0,0.00030137,7]
[383679938,1757082641765,-1300.0,0.00030137,7]
[383679939,1757082641774,-1400.0,0.00030137,7]
[383679940,1757082641784,-500.0,0.00030137,7]
[383679941,1757082641794,-1400.0,0.00030137,7]
[383679942,1757082641804,-600.0,0.00030137,7]
[383679943,1757082641814,-1400.0,0.00030137,7]
[383679944,1757082641823,-500.0,0.00030137,7]
[383679945,1757082641834,-1400.0,0.00030137,7]
[383679946,1757082641843,-1200.0,0.00030137,7]
[383679947,1757082641853,-1300.0,0.00030137,7]
[383679948,1757082641863,-500.0,0.00030137,7]
[383679949,1757082641873,-1400.0,0.00030137,7]
[383679950,1757082641885,-1200.0,0.00030137,7]
[383679951,1757082641895,-1300.0,0.00030137,7]
[383679952,1757082641904,-1400.0,0.00030137,7]
[383679953,1757082641914,-991.32403519,0.00030137,7]
[383679954,1757082641924,-1200.0,0.00030137,7]
[383679955,1757082641934,-1400.0,0.00030137,7]
[383679956,1757082641944,-600.0,0.00030137,7]
[383679957,1757082641954,-1300.0,0.00030137,7]
[383679958,1757082641964,-1800.0,0.00030137,7]
[383679959,1757082641977,-1400.0,0.00030137,7]
[383679960,1757082641987,-1300.0,0.00030137,7]
[383679961,1757082641996,-600.0,0.00030137,7]
[383679962,1757082642007,-1400.0,0.00030137,7]
[383679963,1757082642017,-1400.0,0.00030137,7]
[383679964,1757082642028,-1300.0,0.00030137,7]
[383679965,1757082642038,-600.0,0.00030137,7]
[383679966,1757082642048,-1400.0,0.00030137,7]
[383679967,1757082642059,-772.53642214,0.00030137,7]
[383679968,1757082642069,-2301.3327232,0.00030137,7]
[383679969,1757082642079,-1300.0,0.00030137,7]
[383679970,1757082642089,-1400.0,0.00030137,7]
[383679971,1757082642098,-1300.0,0.00030137,7]
[383679972,1757082642109,-1400.0,0.00030137,7]
[383679973,1757082642119,-1300.0,0.00030137,7]
[383679974,1757082642128,-1400.0,0.00030137,7]
[383679975,1757082642137,-1300.0,0.00030137,7]
[383679976,1757082642147,-1300.0,0.00030137,7]
[383679977,1757082642157,-1400.0,0.00030137,7]
[383679978,1757082642166,-1300.0,0.00030137,7]
[383679980,1757082642176,-1400.0,0.00030137,7]
[383679981,1757082642185,-1300.0,0.00030137,7]
[383679982,1757082642195,-2112.69022997,0.00030137,7]
[383679983,1757082642205,-1300.0,0.00030137,7]
[383679984,1757082642215,-1300.0,0.00030137,7]
[383679985,1757082642226,-1300.0,0.00030137,7]
[383679986,1757082642236,-1390.85274326,0.00030137,7]
[383679987,1757082642246,-3074.49,0.000302,30]
[383679988,1757082642256,-516.0,0.00030247,5]
[383679989,1757082642266,-846.0,0.00030474,2]
[383679990,1757082642276,-31186.23,0.000305,2]
[383679991,1757082642286,-487.28,0.00030588,30]
[383679993,1757082642296,-8897.64,0.000306,7]
[383679995,1757082642306,-266.72,0.00030604,2]
[383679996,1757082642316,-160.0,0.00030718,7]
[383679997,1757082642326,-162.32,0.00030718,2]
[383679998,1757082642336,-334.08003019,0.00031,5]
[383679999,1757082642346,-392.903,0.0003101,28]
[383680000,1757082642355,-274.5,0.00031041,30]
[383680001,1757082642367,-2995.20504404,0.00031076,15]
[383680002,1757082642376,-8352.32552336,0.000314,30]
[383680003,1757082642398,-885.0,0.000314,30]
[383680004,1757082642413,-647.76212848,0.000314,30]
[383680005,1757082642444,-3425.72676992,0.000314,30]
[383680006,1757082643094,-265.74906989,0.00019699,2]
[383680007,1757082643104,-55.98887968,0.000314,30]
[383680008,1757082643115,-643.65507974,0.000314,30]
[383680009,1757082643128,-14085.82243801,0.000314,30]
[383680010,1757082643140,-3010.69135387,0.000314,30]
[383680011,1757082643150,-150.0,0.000315,2]
[383680012,1757082643160,-410.68365985,0.0003186,120]
[383680013,1757082643169,-2012.14180963,0.00032,2]
[383680014,1757082643179,-41355.8919043,0.00032,7]
[383680015,1757082643191,-20351.9680957,0.00032,7]
[383680016,1757082643201,-7773.03190431,0.00032,5]
[383680017,1757082643217,-1121.4,0.00032,5]
[383680018,1757082643237,-1260.50939454,0.00032,5]
[383680019,1757082643247,-2995.20504404,0.00032105,17]
[383680020,1757082643257,-266.72,0.00032134,2]
[383680021,1757082643267,-875.14603858,0.000323,2]
[383680022,1757082643276,-4218.4804162,0.000323,7]
[383680023,1757082643288,-5129.71441029,0.000323,7]
[383680024,1757082643299,-673.03517351,0.000323,7]
[383680025,1757082643310,-3074.49,0.000324,30]
[383680026,1757082643320,-200.0,0.00032592,2]
[383680027,1757082643329,-10226.0762674,0.000326,2]
[383680031,1757082644054,-373.80372228,0.000199,3]
[383680032,1757082644063,-1803.21041772,0.00022381,2]
[383680033,1757082644120,-300.0,0.00022381,2]
[383680034,1757082644132,-5075.16958228,0.00022381,2]
[383680035,1757082644142,-20960.1537326,0.000326,2]
[383680036,1757082644151,-157.52532537,0.00032658,30]
[383680037,1757082644161,-157.52532537,0.00032658,30]
[383680038,1757082644171,-666.0,0.00032748,3]
[383680039,1757082644180,-4724.70841448,0.000328,2]
[383680040,1757082644190,-218.61,0.00032837,2]
[383680041,1757082644199,-170.72064044,0.00032876,2]
[383680042,1757082644209,-429.43612906,0.00032876,2]
[383680043,1757082644219,-466.18564504,0.00032876,2]
[383680044,1757082644231,-388.98048285,0.00032876,2]
[383680045,1757082644240,-497.82618168,0.00032876,2]
[383680046,1757082644250,-500.0,0.00032876,2]
[383680047,1757082644260,-500.0,0.00032876,2]
[383680048,1757082644270,-257.31028375,0.00032876,2]
[383680049,1757082644279,-213.32402246,0.00032877,2]
[383680050,1757082644289,-150.13030851,0.00032877,5]
[383680051,1757082644299,-4621.23555273,0.00033,2]
[383680052,1757082644309,-16750.0,0.00033,30]
[383680053,1757082644319,-168.0,0.00033094,2]
[383680054,1757082644329,-219.52732293,0.000331,2]
[383680055,1757082644339,-2995.20504404,0.00033134,19]
[383680056,1757082644349,-150.0,0.00033167,5]
[383680057,1757082644360,-168.0,0.00033217,2]
[383680058,1757082644369,-1187.7410229,0.00033231,2]
[383680059,1757082644379,-151.0,0.00033297,2]
[383680060,1757082644389,-151.0,0.00033297,2]
[383680061,1757082644399,-151.0,0.00033297,2]
[383680062,1757082644409,-151.0,0.00033297,2]
[383680063,1757082644420,-151.0,0.00033297,2]
[383680064,1757082644431,-151.0,0.00033297,2]
[383680065,1757082644441,-151.0,0.00033297,2]
[383680067,1757082644451,-151.0,0.00033297,2]
[383680068,1757082644460,-151.0,0.00033297,2]
[383680070,1757082644470,-151.0,0.00033297,2]
[383680072,1757082644482,-151.0,0.00033297,2]
[383680074,1757082644491,-151.0,0.00033297,2]
[383680076,1757082644501,-151.0,0.00033297,2]
[383680077,1757082644510,-151.0,0.00033297,2]
[383680079,1757082644520,-151.0,0.00033297,2]
[383680081,1757082644530,-151.0,0.00033297,2]
[383680083,1757082644540,-151.0,0.00033297,2]
[383680085,1757082644550,-151.0,0.00033297,2]
[383680086,1757082644559,-151.0,0.00033297,2]
[383680089,1757082644569,-151.75650432,0.00033297,2]
[383680091,1757082644579,-46405.39847919,0.00033317,2]
[383680094,1757082644602,-281.6751164,0.00032,2]
[383680096,1757082644612,-277.0,0.00033,30]
[383680098,1757082644622,-10630.3248836,0.00033317,2]
[383680100,1757082644633,-661.709808,0.00033317,2]
[383680190,1757082645532,-2713.85682921,0.00033317,2]
[383680192,1757082645541,-410.73,0.00033331,2]
[383680194,1757082645552,-516.0,0.00033356,8]
[383680196,1757082645561,-500.0,0.00033373,5]
[383680198,1757082645571,-500.0,0.00033373,5]
[383680200,1757082645580,-500.0,0.00033373,5]
[383680201,1757082645589,-470.41317079,0.00033373,5]
[383680203,1757082645600,-29.58682921,0.00033373,5]
[383680205,1757082645609,-1047.86028707,0.000335,2]
[383680207,1757082645621,-138.00612671,0.000335,2]
[383680209,1757082645630,-266.72,0.00033664,2]
[383680211,1757082645640,-250.0,0.00033715,5]
[383680213,1757082645649,-958.94,0.000338,7]
[383680215,1757082645659,-168.0,0.00033912,2]
[383680217,1757082645668,-976.96,0.00034,2]
[383680219,1757082645677,-200.0,0.00034,30]
[383680221,1757082645687,-277.0,0.00034,30]
[383680223,1757082645696,-2334.82841297,0.00034164,22]
[383680225,1757082645708,-660.37663107,0.00034164,22]
[383680227,1757082645718,-1508.37336893,0.000342,30]
[383680229,1757082645734,-687.28420307,0.000342,30]
[383680231,1757082645761,-878.832428,0.000342,30]
[383680232,1757082645771,-350.0,0.00034263,5]
[383680233,1757082645780,-168.0,0.00034315,2]
[383680234,1757082645789,-1965.768832,0.000344,14]
[383680235,1757082645801,-1319.51334619,0.000344,14]
[383680236,1757082645812,-55945.0,0.000344,14]
[383680237,1757082645828,-2477.57782181,0.000344,14]
[383680238,1757082645837,-2797.74496252,0.000344,14]
[383680239,1757082645849,-309.1869686,0.000344,14]
[383680240,1757082645861,-6914.29806888,0.000344,14]
[383680241,1757082645871,-3703.05330111,0.000344,2]
[383680242,1757082645883,-11106.0,0.000344,2]
[383680243,1757082645898,-16377.17669889,0.000344,2]
[383680245,1757082645908,-816.78920511,0.0003449,2]
[383680247,1757082645920,-878.42224214,0.0003449,2]
[383680249,1757082645930,-885.30412873,0.000345,2]
[383680251,1757082645943,-114.69587127,0.000345,2]
[383680253,1757082645953,-1100.0,0.000345,14]
[383680255,1757082645963,-428.85,0.00034649,2]
[383680257,1757082645973,-6915.44094578,0.00034649,10]
[383680260,1757082645988,-4970.03905422,0.00034649,10]
[383680262,1757082645998,-150.99,0.00034649,2]
[383680264,1757082646008,-520.37,0.00034649,2]
[383680266,1757082646018,-1187.74102283,0.0003475,2]
[383680268,1757082646028,-168.0,0.00034772,2]
[383680270,1757082646037,-450.0,0.00034811,5]
[383680272,1757082646047,-1444.0,0.00034849,120]
[383680274,1757082646057,-66.45992295,0.0003485,60]
[383680276,1757082646068,-1444.30414774,0.0003485,60]
[383680278,1757082646078,-716.78247061,0.000349,2]
[383680280,1757082646089,-7283.73266262,0.000349,2]
[383680282,1757082646100,-503.01904747,0.000349,2]
[383680285,1757082646112,-6890.59938475,0.000349,2]
[383680287,1757082646122,-1280.44721177,0.00034999,2]
[383680289,1757082646131,-168.59046445,0.00035,30]
[383680291,1757082646140,-195.21618708,0.00035,30]
[383680293,1757082646150,-1212.36956741,0.00035,2]
[383680295,1757082646160,-1525.68754326,0.00035,2]
[383680297,1757082646169,-163.51560319,0.00035,120]
[383680299,1757082646178,-254.23466065,0.00035,30]
[383680301,1757082646187,-150.0,0.00035,5]
[383680303,1757082646196,-2747.0,0.00035,30]
[383680305,1757082646206,-3010.69135387,0.00035,10]
[383680307,1757082646216,-1000.0,0.00035,30]
[383680309,1757082646229,-277.0,0.00035,30]
[383680311,1757082646239,-214.09,0.00035,2]
[383680313,1757082646248,-193.81,0.00035087,60]
[383680315,1757082646258,-1038.55247373,0.00035093,7]
[383680317,1757082646268,-168.0,0.00035179,2]
[383680319,1757082646277,-193.81,0.00035187,60]
[383680321,1757082646287,-2995.20504404,0.00035193,24]
[383680323,1757082646296,-266.72,0.00035194,2]
[383680325,1757082646306,-177.20423338,0.00035242,30]
[383680327,1757082646316,-150.0,0.00035242,30]
[383680329,1757082646325,-478.99432734,0.00035242,30]
[383680331,1757082646335,-150.0,0.00035242,30]
[383680333,1757082646344,-1779.55317634,0.00035242,30]
[383680335,1757082646354,-193.83512561,0.00035287,60]
[383680337,1757082646363,-550.0,0.00035358,5]
[383680339,1757082646373,-1000.0,0.00035699,30]
[383680341,1757082646382,-938.89626,0.00035888,30]
[383680343,1757082646393,-650.0,0.00035906,5]
[383680345,1757082646403,-17184.51208597,0.00035992,7]
[383680666,1757082656693,2000.0,0.0002699,120]
[383680667,1757082657145,1392.46,0.0002699,120]
[383680668,1757082693560,150.4,0.00013699,2]
[383680670,1757082717947,2000.0,0.00027806,120]
[383680671,1757082720788,866.898,0.00027806,120]
[383680672,1757082878780,-216.20443667,0.000199,3]
[383680677,1757083447754,6429.651117,7.945e-05,2]
[383680678,1757083485397,-576.76480232,0.0001985,2]
[383680679,1757083485435,-187.414548,0.00019873,2]
[383680680,1757083485471,-500.0,0.00019873,2]
[383680681,1757083485507,-2500.0,0.00019874,3]
[383680682,1757083485541,-1971.64129936,0.00019882,3]
[383680683,1757083485629,-528.35870064,0.00019882,3]
[383680684,1757083496035,152.63,0.0001233,2]
[383680685,1757083496431,152.63,0.00012979,2]
[383680686,1757083496856,152.63,0.00013627,2]
[383680687,1757083497067,152.63,0.00014276,2]
[383680688,1757083497280,152.63,0.00014925,2]
[383680689,1757083497514,152.63,0.00015574,2]
[383680690,1757083497725,152.63,0.00016223,2]
[383680691,1757083497938,152.63,0.00016872,2]
[383680692,1757083498167,152.63,0.00017521,2]
[383680693,1757083498386,152.63,0.0001817,2]
[383680695,1757083659253,158.6,0.00013699,2]
[383680717,1757083831716,-152.63,0.00018819,2]
[383680718,1757083831726,-152.63,0.00019468,2]
[383680720,1757083831735,-2500.0,0.00019891,3]
[383680721,1757083831745,-2283.79556333,0.000199,3]
[383680723,1757083831756,-152.63,0.00020117,2]
[383680725,1757083831766,-212.0,0.00020255,2]
[383680727,1757083831776,-195.0,0.00020599,2]
[383680728,1757083831786,-152.63,0.00020766,2]
[383680730,1757083831797,-1200.0,0.00021066,2]
[383680732,1757083831807,-300.0,0.00021066,2]
[383680734,1757083831816,-5000.0,0.00021067,2]
[383680735,1757083831827,-500.0,0.000214,2]
[383680737,1757083831838,-152.63,0.00021415,2]
[383680739,1757083831847,-160.1,0.00021726,2]
[383680741,1757083831858,-151.0,0.00021727,2]
[383680742,1757083831867,-151.0,0.00021763,2]
[383680744,1757083831877,-219.16288532,0.00021873,2]
[383680746,1757083831887,-500.0,0.00021873,2]
[383680747,1757083831896,-500.0,0.00021873,2]
[383680749,1757083831906,-1100.0,0.00021884,2]
[383680751,1757083831916,-75589.42512756,0.00021885,2]